bitfinex/quotes_ETHUSD_20240714
["timestamp","ask_amount","ask_price","bid_price","bid_amount"]
[1720984736850,0.06049963,3196.4,3196.1,2.50302]
[1720984737159,0.06049963,3196.4,3196.1,3.29502]
[1720984745144,0.00086452,3196.3,3196.1,3.29502]
[1720984745483,0.49113003,3196.5,3196.1,3.29502]
[1720984745484,0.05854429,3196.2,3196.1,3.29502]
[1720984745842,0.49113003,3196.5,3196.1,3.29502]
[1720984746039,1.02537103,3196.5,3196.1,3.29502]
[1720984746240,0.00091231,3196.4,3196.1,3.29502]
[1720984746643,0.49113003,3196.5,3196.1,3.29502]
[1720984747085,0.00091231,3196.4,3196.1,3.29502]
[1720984747381,0.49113003,3196.5,3196.1,3.29502]
[1720984747557,0.00091231,3196.4,3196.1,3.29502]
[1720984747769,0.49113003,3196.5,3196.1,3.29502]
[1720984748277,0.32748401,3196.3,3196.1,3.29502]
[1720984753181,0.32748401,3196.3,3196.1,0.792]
[1720984754675,0.32748401,3196.3,3195.8,10.47298]
[1720984754980,0.32748401,3196.3,3196.0,0.792]
[1720984755284,0.05885036,3196.2,3196.0,0.792]
[1720984755588,0.32748401,3196.3,3196.0,0.792]
[1720984756077,0.05885036,3196.2,3196.0,0.792]
[1720984756291,0.32748401,3196.3,3196.0,0.792]
[1720984756498,0.05898478,3196.1,3196.0,0.792]
[1720984756660,0.32748401,3196.3,3196.0,0.792]
[1720984757161,0.8186465,3196.3,3196.0,0.792]
[1720984757360,0.05885036,3196.2,3196.0,0.792]
[1720984757759,0.8186465,3196.3,3196.0,0.792]
[1720984757959,0.05898478,3196.1,3196.0,0.792]
[1720984758162,0.8186465,3196.3,3196.0,0.792]
[1720984758358,0.05897138,3196.1,3196.0,0.792]
[1720984758561,0.8186465,3196.3,3196.0,0.792]
[1720984758955,0.05883696,3196.2,3196.0,0.792]
[1720984759361,0.05897138,3196.1,3196.0,0.792]
[1720984760108,0.8186465,3196.3,3196.0,0.792]
[1720984760599,0.05883696,3196.2,3196.0,0.792]
[1720984760765,0.8186465,3196.3,3196.0,0.792]
[1720984761177,0.05883696,3196.2,3196.0,0.792]
[1720984761498,0.8186465,3196.3,3196.0,0.792]
[1720984761700,0.05871471,3196.1,3196.0,0.792]
[1720984761901,0.8186465,3196.3,3196.0,0.792]
[1720984762071,0.05871471,3196.1,3196.0,0.792]
[1720984762475,0.8186465,3196.3,3196.0,0.792]
[1720984762676,0.05871471,3196.1,3195.9,2.5032]
[1720984762908,0.8186465,3196.3,3196.0,0.792]
[1720984768122,0.49116249,3196.3,3196.0,0.792]
[1720984774939,0.05846734,3196.2,3196.0,3.29511]
[1720984775312,0.49116249,3196.3,3196.0,3.29511]
[1720984775514,0.05841248,3196.1,3196.0,3.29511]
[1720984775738,0.49116249,3196.3,3196.0,3.29511]
[1720984775924,0.05864855,3196.1,3196.0,3.29511]
[1720984776100,0.49116249,3196.3,3196.0,3.29511]
[1720984776615,0.05851414,3196.2,3196.0,3.29511]
[1720984776800,0.49116249,3196.3,3196.0,3.29511]
[1720984776999,0.05851414,3196.2,3196.0,3.29511]
[1720984777201,0.49116249,3196.3,3196.0,3.29511]
[1720984777421,0.05851414,3196.2,3196.0,3.29511]
[1720984777940,0.49116249,3196.3,3196.0,4.421594]
[1720984778140,0.49116249,3196.3,3196.2,8.29014]
[1720984778520,0.81863109,3196.3,3196.2,8.29014]
[1720984783943,0.81863109,3196.3,3196.2,10.79311]
[1720984796085,0.81863109,3196.3,3196.2,13.79311]
[1720984796427,0.81863109,3196.3,3196.2,22.5304354]
[1720984798090,0.81863109,3196.3,3196.2,21.3493834]
[1720984798703,0.81863109,3196.3,3196.2,20.7213834]
[1720984799028,0.81863109,3196.3,3196.2,20.3619834]
[1720984799633,0.81863109,3196.3,3196.2,19.7619774]
[1720984799800,0.81863109,3196.3,3196.2,18.0901764]
[1720984800122,0.81863109,3196.3,3196.2,16.0853694]
[1720984801429,2.3735,3197.0,3196.9,2.50242]
[1720984801930,2.43126838,3197.0,3196.9,2.50242]
[1720984803608,2.43126838,3197.0,3196.8,2.50249]
[1720984803806,2.43126838,3197.0,3196.8,3.29449]
[1720984804007,2.43126838,3197.0,3196.8,5.79694]
[1720984804229,2.43126838,3197.0,3196.8,3.29445]
[1720984805641,2.43126838,3197.0,3196.9,2.50242]
[1720984808240,3.24976155,3197.0,3196.9,2.50242]
[1720984811044,0.87626155,3197.0,3196.9,2.50242]
[1720984831919,0.91552107,3197.0,3196.9,2.50242]
[1720984845858,0.91552107,3197.0,3196.8,0.792]
[1720984846847,0.91552107,3197.0,3196.8,3.29449]
[1720984867112,1.24928318,3197.0,3196.2,7.80523]
[1720984867294,2.2622,3196.9,3196.4,3.792]
[1720984867804,2.2622,3196.9,3196.6,0.792]
[1720984875520,0.81849317,3197.0,3196.6,0.792]
[1720984875830,0.09268692,3196.9,3196.6,0.792]
[1720984875985,0.81849317,3197.0,3196.6,0.792]
[1720984876193,0.09265759,3196.8,3196.6,0.792]
[1720984876621,0.81849317,3197.0,3196.6,0.792]
[1720984876826,0.09262825,3196.7,3196.6,0.792]
[1720984877165,0.81849317,3197.0,3196.6,0.792]
[1720984877508,0.09097263,3196.9,3196.6,0.792]
[1720984877711,0.81849317,3197.0,3196.6,0.792]
[1720984877939,0.09097263,3196.9,3196.6,0.792]
[1720984878144,0.81849317,3197.0,3196.6,0.792]
[1720984878843,0.09266419,3196.9,3196.6,0.792]
[1720984879314,0.81849317,3197.0,3196.6,0.792]
[1720984879516,0.09265661,3196.9,3196.6,0.792]
[1720984879715,0.81849317,3197.0,3196.6,0.792]
[1720984880146,0.09264024,3196.9,3196.6,0.792]
[1720984880347,0.09105069,3196.9,3196.6,0.792]
[1720984880646,0.81849317,3197.0,3196.6,0.792]
[1720984881059,0.09264024,3196.9,3196.6,0.792]
[1720984881431,0.81849317,3197.0,3196.6,0.792]
[1720984881946,0.09263267,3196.9,3196.6,0.792]
[1720984882146,0.81849317,3197.0,3196.6,0.792]
[1720984882467,0.09261786,3196.8,3196.6,0.792]
[1720984882776,0.81849317,3197.0,3196.6,0.792]
[1720984883270,0.09263267,3196.9,3196.6,0.792]
[1720984883633,0.81849317,3197.0,3196.6,0.792]
[1720984883836,0.81849317,3197.0,3196.8,0.792]
[1720984886887,0.76849317,3197.0,3196.8,0.792]
[1720984894795,0.08974069,3196.9,3196.8,0.792]
[1720984902411,0.08974069,3196.9,3196.6,6.29465]
[1720984902587,0.76849317,3197.0,3196.6,6.29465]
[1720984909233,0.76849317,3197.0,3196.6,8.79725]
[1720984911895,0.76849317,3197.0,3196.7,2.50256]
[1720984913612,0.76849317,3197.0,3196.8,2.50247]
[1720984913818,0.76849317,3197.0,3196.9,2.50242]
[1720984924746,0.85546065,3197.0,3196.9,2.50242]
[1720984924918,0.85546065,3197.0,3196.9,7.40964]
[1720984925249,0.76849317,3197.0,3196.9,7.40964]
[1720984925464,0.76849317,3197.0,3196.9,8.229804]
[1720984943495,0.76849317,3197.0,3196.9,8.779804]
[1720984982583,0.76849317,3197.0,3196.9,6.375004]
[1720984982747,0.76849317,3197.0,3196.9,5.55484]
[1720984992128,0.85749308,3197.0,3196.9,6.34684]
[1720985008804,0.85749308,3197.0,3196.9,5.55484]
[1720985009005,0.85749308,3197.0,3196.9,6.34684]
[1720985025796,3.16509308,3197.0,3196.8,0.792]
[1720985026130,0.31650931,3196.9,3196.8,0.792]
[1720985026299,0.08898063,3196.9,3196.8,0.792]
[1720985027250,0.08898063,3196.9,3196.6,5.50265]
[1720985027446,0.08898063,3196.9,3196.8,0.792]
[1720985027656,3.07609317,3197.0,3196.8,1.342]
[1720985027950,3.07609317,3197.0,3196.8,0.792]
[1720985028613,0.00190938,3196.9,3196.8,0.792]
[1720985028818,0.00190938,3196.9,3196.8,1.342]
[1720985029754,0.08907778,3196.9,3196.8,1.342]
[1720985033056,0.08907778,3196.9,3196.8,3.8445]
[1720985042256,0.08907778,3196.9,3196.8,7.281708]
[1720985042431,0.08907778,3196.9,3196.8,9.619008]
[1720985042650,0.76849317,3197.0,3196.9,5.00484]
[1720985042853,0.76849317,3197.0,3196.9,5.55484]
[1720985066636,0.76849317,3197.0,3196.9,6.34684]
[1720985084412,0.76849317,3197.0,3196.9,7.515254]
[1720985084617,0.76849317,3197.0,3196.9,10.017674]
[1720985084815,0.76849317,3197.0,3196.9,15.515174]
[1720985085117,0.76849317,3197.0,3196.9,16.60389001]
[1720985085280,0.76849317,3197.0,3196.9,15.515174]
[1720985085678,0.76849317,3197.0,3196.9,26.539846]
[1720985085905,0.76849317,3197.0,3196.9,29.26160843]
[1720985086082,0.76849317,3197.0,3196.9,29.042266]
[1720985086293,0.76849317,3197.0,3196.9,31.76392132]
[1720985087310,0.76849317,3197.0,3196.9,30.47580132]
[1720985087515,0.76849317,3197.0,3196.9,28.84280813]
[1720985089235,0.76849317,3197.0,3196.9,28.84279962]
[1720985090503,0.76849317,3197.0,3196.9,27.754146]
[1720985093386,0.76849317,3197.0,3196.9,27.157364]
[1720985097218,0.76849317,3197.0,3196.9,27.31250046]
[1720985098151,0.76849317,3197.0,3196.9,26.67249946]
[1720985102751,0.76849317,3197.0,3196.9,18.17273046]
[1720985102955,0.76849317,3197.0,3196.9,26.67249946]
[1720985103731,0.76849317,3197.0,3196.9,19.82752946]
[1720985111249,0.76849317,3197.0,3196.9,22.32994946]
[1720985111250,0.49104842,3197.0,3196.9,22.32994946]
[1720985111454,0.49104842,3197.0,3196.9,19.82752946]
[1720985111966,0.49104842,3197.0,3196.9,17.90052846]
[1720985112543,0.49104842,3197.0,3196.9,15.67031046]
[1720985116070,0.49104842,3197.0,3196.9,13.17281046]
[1720985118491,0.49104842,3197.0,3196.9,12.38081046]
[1720985118646,0.49104842,3197.0,3196.9,13.17281046]
[1720985123168,0.49104842,3197.0,3196.9,16.10980746]
[1720985124886,0.49104842,3197.0,3196.9,18.40820746]
[1720985126362,0.49104842,3197.0,3196.9,13.17281046]
[1720985128213,0.49104842,3197.0,3196.9,12.00439646]
[1720985128591,0.49104842,3197.0,3196.9,13.09308926]
[1720985128974,0.49104842,3197.0,3196.9,12.00439646]
[1720985129179,0.49104842,3197.0,3196.9,13.09308993]
[1720985130422,0.49104842,3197.0,3196.9,14.72613102]
[1720985130725,0.49104842,3197.0,3196.9,16.26446388]
[1720985132403,0.49104842,3197.0,3196.9,13.54272932]
[1720985132621,0.49104842,3197.0,3196.9,16.26445329]
[1720985135982,0.49104842,3197.0,3196.9,16.2644595]
[1720985136182,0.49104842,3197.0,3196.9,13.54272932]
[1720985136383,0.49104842,3197.0,3196.9,16.2644499]
[1720985139247,0.49104842,3197.0,3196.9,13.54272932]
[1720985139416,0.49104842,3197.0,3196.9,16.2644948]
[1720985142645,0.49104842,3197.0,3196.9,13.54272932]
[1720985142847,0.49104842,3197.0,3196.9,16.26449897]
[1720985143426,0.49104842,3197.0,3196.9,12.93796786]
[1720985145845,0.49104842,3197.0,3196.9,11.84926]
[1720985148103,0.49104842,3197.0,3196.9,12.93798605]
[1720985148446,0.49104842,3197.0,3196.9,11.84926]
[1720985148936,0.49104842,3197.0,3196.9,12.93797744]
[1720985149150,0.49104842,3197.0,3196.9,14.31311676]
[1720985149454,0.49104842,3197.0,3196.9,13.22439932]
[1720985149605,0.49104842,3197.0,3196.9,14.31311466]
[1720985153026,0.49104842,3197.0,3196.9,13.22439932]
[1720985154331,0.49104842,3197.0,3196.9,15.59209932]
[1720985154755,0.49104842,3197.0,3196.9,16.68081607]
[1720985155153,0.49104842,3197.0,3196.9,15.59209932]
[1720985160262,0.32748694,3197.4,3197.3,10.00844]
[1720985160466,2.3099,3198.3,3198.2,2.5014]
[1720985160769,2.37414384,3198.3,3198.2,3.8434]
[1720985161177,2.37414384,3198.3,3198.2,6.3448]
[1720985161853,2.3099,3198.3,3198.2,6.3448]
[1720985173368,0.3274297,3198.7,3198.2,6.3448]
[1720985173369,0.3274297,3198.7,3198.6,2.50109]
[1720985173867,2.88912194,3198.7,3198.6,2.50109]
[1720985181983,0.39182194,3198.7,3198.6,3.29309]
[1720985182580,0.3274297,3198.7,3198.6,3.29309]
[1720985183195,0.38768172,3198.7,3198.6,3.29309]
[1720985184066,0.3274297,3198.7,3198.6,3.29309]
[1720985188239,0.39158268,3198.7,3198.6,3.29309]
[1720985188625,0.3274297,3198.7,3198.6,3.29309]
[1720985189309,0.39158268,3198.7,3198.6,3.29309]
[1720985191225,0.39158268,3198.7,3198.6,8.756305]
[1720985191518,2.2793,3199.4,3199.0,2.50075]
[1720985191682,2.2793,3199.4,3199.0,3.29275]
[1720985192022,0.32737998,3199.3,3199.0,3.29275]
[1720985192223,0.32737998,3199.3,3199.0,5.79346]
[1720985204558,0.32737998,3199.3,3199.0,3.29271]
[1720985208089,0.06434041,3199.2,3199.0,3.29271]
[1720985214562,0.06434041,3199.2,3199.0,2.50071]
[1720985216881,0.06434041,3199.2,3199.1,2.5007]
[1720985217082,0.06434041,3199.2,3199.1,3.2927]
[1720985217394,2.2793,3199.6,3199.1,3.2927]
[1720985217875,0.06440113,3199.5,3199.1,3.2927]
[1720985222690,0.06440113,3199.5,3199.0,0.547059]
[1720985222867,0.06440113,3199.5,3199.1,2.50069]
[1720985225267,0.55514834,3199.5,3199.1,2.50069]
[1720985226674,0.55514834,3199.5,3198.9,5.67549]
[1720985227018,0.55514834,3199.5,3199.0,0.55]
[1720985227184,2.3691,3199.4,3198.9,0.792]
[1720985227579,0.06440966,3199.3,3198.9,0.792]
[1720985235506,2.3578,3199.2,3198.8,2.50088]
[1720985235822,2.3578,3199.2,3198.6,5.50104]
[1720985235980,2.3578,3199.2,3198.7,6.05095]
[1720985237705,2.3578,3199.2,3198.7,3.55]
[1720985237904,2.3578,3199.1,3198.7,3.0]
[1720985238109,2.3578,3199.0,3198.6,3.0]
[1720985238287,7.35942,3199.0,3198.6,3.0]
[1720985238492,0.05999284,3198.9,3198.6,3.0]
[1720985239623,0.00412818,3198.8,3198.6,3.0]
[1720985239986,4.85858,3199.0,3198.6,3.0]
[1720985240516,0.06427819,3198.9,3198.6,3.0]
[1720985241494,2.2948,3198.7,3198.6,3.0]
[1720985241687,2.50117,3198.5,3198.2,19.94]
[1720985241889,2.2948,3198.4,3198.2,19.94]
[1720985242104,2.3549388,3198.4,3198.2,19.94]
[1720985243100,0.0039833,3198.3,3198.2,19.94]
[1720985243302,2.2948,3198.4,3198.2,19.94]
[1720985243789,0.06010453,3198.3,3198.2,19.94]
[1720985243995,2.2948,3198.4,3198.2,19.94]
[1720985245194,0.06002289,3198.3,3198.2,19.94]
[1720985245703,2.2948,3198.4,3198.2,19.94]
[1720985245903,0.06002289,3198.3,3198.2,19.94]
[1720985246115,2.2948,3198.4,3198.2,19.94]
[1720985246621,0.06009926,3198.3,3197.9,0.792]
[1720985246823,2.2948,3198.4,3197.9,0.792]
[1720985247128,0.0601786,3198.2,3197.9,0.792]
[1720985247423,0.06003043,3198.3,3197.9,0.792]
[1720985247625,2.2948,3198.4,3197.9,0.792]
[1720985247995,0.06018306,3198.2,3197.9,0.792]
[1720985248323,2.2948,3198.4,3197.9,0.792]
[1720985248711,0.0600476,3198.3,3197.9,0.792]
[1720985248920,2.2948,3198.4,3197.9,0.792]
[1720985249116,2.2948,3198.4,3197.8,2.50171]
[1720985249295,0.05996796,3198.3,3197.8,2.50171]
[1720985249493,2.2948,3198.4,3197.8,3.809268]
[1720985249733,2.2948,3198.4,3197.8,2.50171]
[1720985250106,2.50125,3198.4,3197.7,8.072]
[1720985250298,2.2948,3198.3,3197.7,8.072]
[1720985250995,2.2948,3198.3,3197.7,7.28]
[1720985252403,2.2948,3198.3,3197.6,5.00361]
[1720985252651,2.2948,3198.3,3197.6,7.50523332]
[1720985252805,2.2948,3198.3,3197.7,2.50179]
[1720985254417,2.2948,3198.3,3197.4,22.61]
[1720985254418,0.792,3198.2,3197.4,7.28]
[1720985254618,2.3588,3198.0,3197.4,7.28]
[1720985254843,2.35768937,3198.0,3197.4,7.28]
[1720985255055,0.05841191,3197.9,3197.4,7.28]
[1720985255313,4.85925937,3198.0,3197.4,7.28]
[1720985255513,0.05854146,3197.8,3197.4,7.28]
[1720985255750,4.85925937,3198.0,3197.4,7.28]
[1720985256255,0.0583911,3197.9,3197.4,7.28]
[1720985256608,2.50157,3198.0,3197.4,7.28]
[1720985257713,2.50164,3197.9,3197.3,2.5021]
[1720985257914,2.3588,3197.8,3197.3,2.5021]
[1720985258145,2.41750552,3197.8,3197.3,2.5021]
[1720985260149,2.41750552,3197.8,3197.1,3.29422]
[1720985260333,2.41750552,3197.8,3197.2,0.55]
[1720985261243,2.41750552,3197.8,3197.2,3.05217]
[1720985261839,0.00311981,3197.7,3197.2,3.05217]
[1720985262043,0.00311981,3197.7,3197.0,2.5023]
[1720985262223,0.792,3198.0,3196.9,0.792]
[1720985262224,4.86068,3197.6,3196.9,0.792]
[1720985262418,0.05867683,3197.5,3196.9,3.792]
[1720985262627,0.05867683,3197.5,3196.9,0.792]
[1720985262961,0.05867683,3197.5,3196.9,3.792]
[1720985263168,0.05867683,3197.5,3196.9,3.0]
[1720985263868,0.05867683,3197.5,3196.9,5.50242]
[1720985265452,0.00259087,3197.4,3196.9,5.50242]
[1720985267357,0.00259087,3197.4,3196.9,7.174056]
[1720985267578,0.00259087,3197.4,3197.0,2.4702]
[1720985268856,0.00259087,3197.4,3197.0,2.50233]
[1720985269755,0.05897199,3197.3,3197.0,2.50233]
[1720985272467,0.00205713,3197.2,3197.0,2.50233]
[1720985272665,0.00205713,3197.2,3197.0,3.7170016]
[1720985272853,0.05897199,3197.3,3197.0,3.7170016]
[1720985273057,0.00233341,3197.2,3197.0,3.7170016]
[1720985273259,2.3588,3197.6,3197.0,3.7170016]
[1720985273458,2.3588,3197.6,3197.0,2.50233]
[1720985276091,0.00247421,3197.5,3197.0,2.50233]
[1720985284788,0.05869428,3197.4,3197.0,2.50233]
[1720985285470,0.54967973,3197.4,3197.0,2.50233]
[1720985286383,2.4423,3197.3,3196.9,5.50241]
[1720985286594,2.44473351,3197.3,3196.9,6.382101]
[1720985293497,0.00243351,3197.3,3196.9,6.382101]
[1720985294997,0.00243351,3197.3,3197.0,2.5023]
[1720985296980,0.00243351,3197.3,3197.0,2.50228]
[1720985297887,0.00243351,3197.3,3197.2,2.50218]
[1720985298186,0.00243351,3197.3,3197.2,3.540388]
[1720985298392,0.00243351,3197.3,3197.2,6.042568]
[1720985298580,0.49098545,3197.4,3197.2,6.042568]
[1720985298782,0.49098545,3197.4,3197.3,3.05211]
[1720985299782,0.54980422,3197.4,3197.3,3.05211]
[1720985300182,0.54980422,3197.4,3197.3,3.9735498]
[1720985300610,0.5523181,3197.4,3197.3,3.9735498]
[1720985303418,0.5523181,3197.4,3197.3,8.8555598]
[1720985303624,0.5523181,3197.4,3197.3,9.6475598]
[1720985304627,0.49098545,3197.4,3197.3,9.6475598]
[1720985312630,0.49098545,3197.4,3197.3,7.2676598]
[1720985314614,0.49098545,3197.4,3197.3,6.4756598]
[1720985314813,0.49098545,3197.4,3197.3,5.55422]
[1720985315036,0.55221516,3197.4,3197.3,5.55422]
[1720985315259,0.55221516,3197.4,3197.3,3.05211]
[1720985325933,0.55221516,3197.4,3196.9,5.50238]
[1720985326138,0.49098545,3197.4,3196.9,5.50238]
[1720985327157,0.49098545,3197.4,3197.0,2.50232]
[1720985327482,0.49098545,3197.4,3197.0,3.29432]
[1720985331977,0.49098545,3197.4,3197.3,2.50211]
[1720985332155,0.49098545,3197.4,3197.3,3.05211]
[1720985334693,0.4934155,3197.4,3197.3,3.05211]
[1720985344788,0.55210626,3197.4,3197.3,3.05211]
[1720985349893,0.55210626,3197.4,3197.3,5.52851]
[1720985350095,0.55210626,3197.4,3197.3,6.410774]
[1720985356007,0.55210626,3197.4,3197.3,3.934374]
[1720985356307,0.55210626,3197.4,3197.3,3.05211]
[1720985362718,0.5509209,3197.4,3197.3,3.05211]
[1720985367034,0.55219009,3197.4,3197.3,3.05211]
[1720985367850,0.55087061,3197.4,3197.3,3.05211]
[1720985370599,0.55219008,3197.4,3197.3,3.05211]
[1720985379347,0.54967621,3197.4,3197.3,3.05211]
[1720985386450,0.54967621,3197.4,3197.3,0.55]
[1720985391565,0.54967621,3197.4,3197.2,2.50213]
[1720985391566,0.54967621,3197.4,3197.0,2.50231]
[1720985391898,0.49098545,3197.4,3197.1,0.55]
[1720985398460,0.05611889,3197.3,3197.1,0.55]
[1720985400455,0.05611889,3197.3,3196.6,4.83899]
[1720985400793,2.55822889,3197.3,3196.6,4.83899]
[1720985401188,2.55822889,3197.3,3196.7,0.792]
[1720985401491,0.05611889,3197.3,3196.7,3.2945]
[1720985402485,0.05611889,3197.3,3196.8,0.55]
[1720985403566,0.05611889,3197.3,3196.8,3.05249]
[1720985408888,0.05611889,3197.3,3196.8,3.20849]
[1720985423250,0.05611889,3197.3,3197.1,2.50222]
[1720985423478,0.05611889,3197.3,3197.2,0.55]
[1720985425883,2.52991889,3197.3,3196.9,2.50239]
[1720985429248,0.05611889,3197.3,3196.9,2.50239]
[1720985430658,0.05611889,3197.3,3196.9,5.00475]
[1720985432283,0.05611889,3197.3,3197.0,2.50232]
[1720985432479,0.05611889,3197.3,3197.1,3.05221]
[1720985433856,0.05611889,3197.3,3197.2,2.50218]
[1720985439311,0.05611889,3197.3,3197.2,3.05218]
[1720985442923,0.49098545,3197.4,3197.3,2.50211]
[1720985443142,0.49098545,3197.4,3197.3,3.05211]
[1720985443433,0.54609124,3197.4,3197.3,3.05211]
[1720985444800,0.54609124,3197.4,3197.3,5.55422]
[1720985445130,0.54609124,3197.4,3197.3,11.541843]
[1720985445328,0.54609124,3197.4,3197.3,12.2519375]
[1720985445489,0.49098545,3197.4,3197.3,12.4148495]
[1720985447605,0.49098545,3197.4,3197.3,14.9169595]
[1720985451705,0.06506915,3197.4,3197.3,35.6012025]
[1720985451901,2.4781,3198.6,3198.3,2.50132]
[1720985452320,0.05531088,3198.5,3198.3,2.50132]
[1720985452634,2.96895223,3198.6,3198.3,2.50132]
[1720985453000,0.05531088,3198.5,3198.3,2.50132]
[1720985460465,0.05531088,3198.5,3198.3,5.00258]
[1720985461950,0.05531088,3198.5,3198.4,2.50125]
[1720985470564,0.05531088,3198.5,3198.4,5.0025]
[1720985472079,0.05531088,3198.5,3198.4,8.51535]
[1720985472435,0.05531088,3198.5,3198.4,11.0166]
[1720985472859,0.49085223,3198.6,3198.5,5.00234]
[1720985473064,0.49085223,3198.6,3198.5,6.34434]
[1720985473980,0.49085223,3198.6,3198.5,8.84551]
[1720985474146,0.49085223,3198.6,3198.5,11.77636248]
[1720985488556,0.49085223,3198.6,3198.5,14.77636248]
[1720985490913,0.49085223,3198.6,3198.5,9.09979248]
[1720985491085,2.91125223,3198.6,3198.1,3.0]
[1720985491386,2.91125223,3198.6,3198.2,2.50136]
[1720985491902,0.05382573,3198.5,3198.2,2.50136]
[1720985492069,0.05382573,3198.5,3198.3,0.792]
[1720985500102,0.05382573,3198.5,3198.4,2.50125]
[1720985500300,0.05382573,3198.5,3198.4,5.5525]
[1720985500707,0.49085223,3198.6,3198.5,2.50117]
[1720985500913,0.49085223,3198.6,3198.5,3.05117]
[1720985501115,0.49085223,3198.6,3198.5,3.84317]
[1720985503100,0.49085223,3198.6,3198.5,3.05117]
[1720985503101,0.54315329,3198.6,3198.5,3.05117]
[1720985503851,2.4992,3198.5,3198.0,2.50151]
[1720985504015,2.4992,3198.5,3198.0,3.29351]
[1720985505000,2.4992,3198.5,3198.1,0.55]
[1720985505802,2.4992,3198.5,3198.2,2.50139]
[1720985506024,0.05216666,3198.4,3198.2,2.50139]
[1720985507499,0.05216666,3198.4,3198.0,0.792]
[1720985507700,0.05216666,3198.4,3197.6,5.4698]
[1720985507701,0.05216666,3198.4,3197.9,0.792]
[1720985507901,2.4992,3198.5,3197.9,0.792]
[1720985508541,2.4992,3198.5,3197.9,3.29361]
[1720985509264,2.4992,3198.5,3197.9,5.79522]
[1720985510079,2.4992,3198.5,3198.1,0.792]
[1720985521787,2.4992,3198.5,3198.1,3.29348]
[1720985529221,0.49085223,3198.6,3198.1,3.29348]
[1720985529418,0.49085223,3198.6,3198.2,0.329348]
[1720985529584,0.49085223,3198.6,3198.3,2.50131]
[1720985529921,0.05037797,3198.5,3198.3,2.50131]
[1720985533515,0.05037797,3198.5,3198.4,2.50125]
[1720985535404,0.05037797,3198.5,3198.3,2.50131]
[1720985536724,2.3322,3198.4,3198.0,2.50154]
[1720985537338,2.3322,3198.4,3198.0,5.00305]
[1720985538444,2.3322,3198.4,3198.0,2.50151]
[1720985540535,2.3322,3198.4,3198.0,5.00301]
[1720985542345,2.3322,3198.4,3198.0,2.5015]
[1720985544242,2.3322,3198.4,3198.0,5.003]
[1720985546552,2.3322,3198.4,3198.0,2.5015]
[1720985563960,2.3322,3198.4,3198.0,5.003]
[1720985570555,2.3322,3198.4,3198.0,2.5015]
[1720985570858,2.3322,3198.4,3198.0,5.00301]
[1720985574655,2.3322,3198.4,3198.0,2.5015]
[1720985574858,2.3322,3198.4,3198.0,5.003]
[1720985575866,2.3322,3198.4,3198.0,2.5015]
[1720985589152,0.49085223,3198.6,3198.2,2.5014]
[1720985589578,0.04364317,3198.5,3198.2,2.5014]
[1720985595992,0.04364317,3198.5,3198.3,2.50128]
[1720985600769,0.04364317,3198.5,3198.3,4.94748]
[1720985602294,0.04364317,3198.5,3198.4,2.50125]
[1720985602867,0.04364317,3198.5,3198.2,2.5014]
[1720985603392,0.04364317,3198.5,3198.2,5.00274]
[1720985603767,0.04364317,3198.5,3198.3,2.5013]
[1720985616317,0.04364317,3198.5,3198.3,2.50128]
[1720985621317,0.04364317,3198.5,3198.3,5.00255]
[1720985623321,0.04364317,3198.5,3198.3,2.50127]
[1720985627774,0.04364317,3198.5,3198.3,5.00254]
[1720985628552,0.04364317,3198.5,3198.4,2.50125]
[1720985667462,2.38704317,3198.5,3198.0,3.29354]
[1720985667639,2.38704317,3198.5,3197.4,37.772]
[1720985667640,2.50141,3198.2,3197.4,32.27]
[1720985667807,4.8449,3198.1,3197.4,32.27]
[1720985668159,4.8449,3198.1,3197.4,34.77203]
[1720985668160,0.04305447,3198.0,3197.4,34.77203]
[1720985671557,0.04305447,3198.0,3197.4,32.27]
[1720985671558,2.4361,3197.9,3197.4,32.27]
[1720985671852,0.04278452,3197.8,3197.4,19.94]
[1720985672203,3.06246588,3197.9,3197.4,19.94]
[1720985672419,0.04278452,3197.8,3197.4,19.94]
[1720985672682,3.06246588,3197.9,3197.4,19.94]
[1720985673162,0.04278452,3197.8,3197.4,19.94]
[1720985673596,3.06246588,3197.9,3197.4,19.94]
[1720985673921,0.04228452,3197.8,3197.4,19.94]
[1720985674322,2.4361,3197.9,3197.4,19.94]
[1720985674766,0.04228452,3197.8,3197.3,2.50209]
[1720985675128,2.4361,3197.9,3197.3,2.50209]
[1720985675322,2.97896044,3197.9,3197.3,2.50209]
[1720985675522,0.04228452,3197.8,3197.3,2.50209]
[1720985675962,2.4361,3197.9,3197.3,2.50209]
[1720985676323,0.04228452,3197.8,3197.3,2.50209]
[1720985676755,2.4361,3197.9,3197.3,2.50209]
[1720985676956,2.97896044,3197.9,3197.3,2.50209]
[1720985677159,0.04228452,3197.8,3197.3,2.50209]
[1720985677526,2.97896044,3197.9,3197.3,2.50209]
[1720985677941,0.04228452,3197.8,3197.3,2.50209]
[1720985678470,2.97896044,3197.9,3197.3,2.50209]
[1720985678855,0.04228452,3197.8,3197.3,2.50209]
[1720985679471,2.4361,3197.9,3197.3,2.50209]
[1720985679962,0.04228452,3197.8,3197.3,2.50209]
[1720985680126,0.04228452,3197.8,3197.4,2.50202]
[1720985680331,2.4361,3197.9,3197.4,2.50202]
[1720985680735,0.04227705,3197.8,3197.4,2.50202]
[1720985681268,2.4361,3197.9,3197.4,2.50202]
[1720985681642,0.04227705,3197.8,3197.4,2.50202]
[1720985682168,0.49799571,3197.8,3197.2,2.50212]
[1720985682329,2.4361,3197.7,3197.2,2.50212]
[1720985682529,2.47835531,3197.7,3197.2,2.50212]
[1720985682729,2.4361,3197.7,3197.2,2.50212]
[1720985683233,2.97967357,3197.7,3197.2,2.50212]
[1720985684237,2.4361,3197.7,3197.2,2.50212]
[1720985686146,2.4361,3197.9,3197.5,2.50195]
[1720985692119,0.32741602,3198.0,3197.7,2.50179]
[1720985692410,0.49092435,3198.1,3197.9,2.50164]
[1720985692580,0.49092435,3198.1,3197.9,3.081169]